bitfinex/quotes_SOLUSD_20250108
["timestamp","ask_amount","ask_price","bid_price","bid_amount"]
[1736347081866,7.7571,198.59,198.51,3.38]
[1736347083065,7.7571,198.59,198.52,23.776884]
[1736347083274,7.7571,198.59,198.52,63.11529248]
[1736347083581,7.7571,198.59,198.53,23.776884]
[1736347083951,7.7571,198.59,198.52,23.776884]
[1736347084252,7.7571,198.59,198.52,63.11529248]
[1736347084769,7.7571,198.59,198.56,23.776884]
[1736347084984,7.7571,198.59,198.57,23.776884]
[1736347085144,6.2267,198.64,198.59,23.776884]
[1736347085347,6.2267,198.64,198.59,63.11529248]
[1736347085584,6.2267,198.64,198.62,39.33840848]
[1736347085866,5.0,198.81,198.54,38.36229913]
[1736347085867,6.4195,198.7,198.63,63.11529248]
[1736347086067,6.4195,198.7,198.69,23.776884]
[1736347086271,1.6017,198.72,198.69,63.11529248]
[1736347086787,6.4195,198.75,198.71,23.776884]
[1736347087380,6.4195,198.75,198.72,63.11529248]
[1736347087890,1.5022,198.78,198.75,23.776884]
[1736347088046,6.3874,198.8,198.75,63.11529248]
[1736347088445,1.5022,198.84,198.79,23.776884]
[1736347088795,6.3874,198.85,198.82,23.776884]
[1736347088967,6.3874,198.85,198.82,39.33840848]
[1736347089274,6.3874,198.85,198.79,3.34]
[1736347089598,6.3874,198.85,198.8,23.776884]
[1736347090248,6.3874,198.85,198.77,39.33840848]
[1736347090786,6.3874,198.85,198.82,23.776884]
[1736347090959,6.3874,198.85,198.81,39.33840848]
[1736347091164,6.3874,198.85,198.82,23.776884]
[1736347091475,6.3874,198.85,198.77,39.33840848]
[1736347091781,6.3874,198.85,198.82,23.776884]
[1736347092147,6.3874,198.85,198.81,23.776884]
[1736347092350,6.3874,198.85,198.76,42.65840848]
[1736347092671,6.3874,198.85,198.76,3.32]
[1736347093989,0.9430243,198.84,198.76,3.32]
[1736347094174,20.0,198.82,198.69,38.36229913]
[1736347094366,1.6252,198.8,198.69,81.00070761]
[1736347094548,1.6252,198.8,198.71,39.33840848]
[1736347094748,1.6252,198.8,198.7,39.33840848]
[1736347094969,1.6252,198.8,198.67,39.33840848]
[1736347095153,1.6252,198.8,198.64,39.33840848]
[1736347095154,6.1736,198.78,198.64,39.33840848]
[1736347095492,0.94339767,198.77,198.65,23.776884]
[1736347095786,20.0,198.75,198.65,39.33840848]
[1736347095994,0.94351666,198.74,198.63,3.3]
[1736347096169,20.94351666,198.74,198.61,45.34]
[1736347096366,20.0,198.7,198.61,45.34]
[1736347096682,0.94378999,198.69,198.56,3.3]
[1736347097050,0.94378999,198.69,198.56,42.63840848]
[1736347097282,0.94378999,198.69,198.57,39.33840848]
[1736347097500,0.94378999,198.69,198.56,42.63840848]
[1736347097658,20.0,198.7,198.59,23.776884]
[1736347098061,20.0,198.7,198.57,39.33840848]
[1736347098275,20.0,198.7,198.57,59.33840848]
[1736347098507,0.94378073,198.69,198.56,3.3]
[1736347098858,0.94378073,198.69,198.57,23.776884]
[1736347099185,20.0,198.7,198.59,23.776884]
[1736347099351,7.8368,198.73,198.63,23.776884]
[1736347099559,7.8368,198.73,198.61,39.33840848]
[1736347099809,20.0,198.7,198.57,39.33840848]
[1736347099981,0.94382865,198.69,198.54,137.1]
[1736347100191,20.0,198.65,198.51,39.33840848]
[1736347100406,0.94401439,198.64,198.5,39.33840848]
[1736347100573,1.5185,198.63,198.5,39.33840848]
[1736347100911,1.5185,198.63,198.51,23.776884]
[1736347101089,7.47580352,198.62,198.48,39.33840848]
[1736347101586,20.0,198.59,198.46,39.33840848]
[1736347101898,20.0,198.59,198.49,39.33840848]
[1736347102108,6.5317,198.62,198.51,39.33840848]
[1736347102301,6.5317,198.62,198.52,39.33840848]
[1736347102480,6.5317,198.62,198.53,23.776884]
[1736347102901,6.5317,198.62,198.52,23.776884]
[1736347103211,6.5317,198.62,198.51,23.776884]
[1736347103527,6.5317,198.62,198.53,23.776884]
[1736347103705,6.5317,198.62,198.55,23.776884]
[1736347103913,6.5317,198.62,198.51,39.33840848]
[1736347104279,6.5317,198.62,198.52,63.11529248]
[1736347104707,20.0,198.59,198.44,182.42]
[1736347104884,0.94436393,198.58,198.44,45.32]
[1736347105291,0.94436393,198.58,198.44,84.65840848]
[1736347105586,0.94436393,198.58,198.45,23.776884]
[1736347105899,0.94436393,198.58,198.45,39.33840848]
[1736347106277,0.94436393,198.58,198.46,23.776884]
[1736347106496,20.0,198.59,198.48,23.776884]
[1736347107103,20.0,198.59,198.46,39.33840848]
[1736347107302,20.0,198.59,198.48,23.776884]
[1736347107509,0.94432619,198.58,198.48,23.776884]
[1736347107984,0.94432619,198.58,198.45,39.33840848]
[1736347108181,28.1485,198.57,198.44,45.32]
[1736347108388,0.94457684,198.56,198.44,45.32]
[1736347108701,3.26,198.55,198.44,45.32]
[1736347108877,0.94458397,198.54,198.44,45.32]
[1736347109085,0.94457575,198.56,198.45,23.776884]
[1736347109416,0.94447093,198.56,198.45,23.776884]
[1736347109788,0.89737383,198.56,198.43,39.33840848]
[1736347110004,0.89737383,198.56,198.43,63.11529248]
[1736347110486,0.89737383,198.56,198.45,23.776884]
[1736347111410,0.89737383,198.56,198.42,23.776884]
[1736347111605,0.89737383,198.56,198.42,48.17612355]
[1736347111925,0.89737383,198.56,198.44,23.776884]
[1736347112283,0.89737383,198.56,198.41,24.39923955]
[1736347112484,7.7782,198.51,198.38,24.39923955]
[1736347112683,20.0,198.48,198.36,24.39923955]
[1736347113007,20.0,198.48,198.37,23.776884]
[1736347113213,20.0,198.48,198.36,24.39923955]
[1736347113423,0.89769866,198.47,198.34,24.39923955]
[1736347113592,0.89769866,198.47,198.35,24.39923955]
[1736347114207,0.89769866,198.47,198.36,24.39923955]
[1736347114709,20.8977208,198.48,198.37,23.776884]
[1736347114913,20.8977208,198.48,198.33,3.24]
[1736347114914,20.8977208,198.48,198.34,24.39923955]
[1736347115124,20.0,198.44,198.33,24.39923955]
[1736347116223,20.0,198.44,198.34,23.776884]
[1736347116624,20.0,198.44,198.35,48.17612355]
[1736347116807,20.0,198.44,198.35,23.776884]
[1736347117122,20.0,198.44,198.34,23.776884]
[1736347117325,6.4802,198.47,198.37,23.776884]
[1736347117825,6.4802,198.47,198.36,24.39923955]
[1736347118122,6.4802,198.47,198.37,48.17612355]
[1736347118426,6.4802,198.47,198.38,23.776884]
[1736347118597,6.4802,198.47,198.39,24.39923955]
[1736347118928,6.4802,198.47,198.41,23.776884]
[1736347119104,6.4802,198.47,198.41,48.17612355]
[1736347119499,6.4802,198.47,198.41,23.776884]
[1736347120611,6.4802,198.47,198.43,24.39923955]
[1736347120926,6.4802,198.47,198.4,48.17612355]
[1736347121130,6.4802,198.47,198.4,23.776884]
[1736347121705,6.4802,198.47,198.36,24.39923955]
[1736347121908,6.4802,198.47,198.36,3.18]
[1736347122119,6.4802,198.47,198.36,27.57923955]
[1736347122298,6.4802,198.47,198.36,3.18]
[1736347122507,0.89774123,198.46,198.36,3.18]
[1736347122812,6.4802,198.47,198.36,3.18]
[1736347123007,6.4802,198.47,198.38,24.39923955]
[1736347123207,6.4802,198.47,198.39,23.776884]
[1736347124113,6.4802,198.47,198.4,24.39923955]
[1736347124419,6.4802,198.47,198.42,24.39923955]
[1736347124623,6.4802,198.47,198.41,23.776884]
[1736347124923,6.4802,198.47,198.42,23.776884]
[1736347125099,6.4802,198.47,198.44,23.776884]
[1736347125300,6.4802,198.47,198.45,24.39923955]
[1736347125903,6.4802,198.47,198.45,23.776884]
[1736347126099,6.4802,198.47,198.46,48.17612355]
[1736347126300,8.18,198.62,198.46,48.17612355]
[1736347126301,6.4362,198.52,198.47,23.776884]
[1736347126516,6.4362,198.57,198.52,23.776884]
[1736347126713,6.4362,198.57,198.52,48.17612355]
[1736347126936,6.4362,198.57,198.52,23.776884]
[1736347127236,6.4362,198.57,198.5,23.776884]
[1736347127431,6.4362,198.57,198.5,48.17612355]
[1736347127817,6.4362,198.57,198.52,23.776884]
[1736347128219,6.4362,198.57,198.51,48.17612355]
[1736347128606,6.4362,198.57,198.53,23.776884]
[1736347129833,20.0,198.54,198.36,175.46229913]
[1736347130042,6.4362,198.57,198.44,24.39923955]
[1736347130505,20.0,198.54,198.42,24.39923955]
[1736347130709,20.0,198.54,198.37,164.69923955]
[1736347130710,0.89733076,198.53,198.37,164.69923955]
[1736347131013,20.0,198.54,198.38,24.39923955]
[1736347131209,20.0,198.54,198.41,24.39923955]
[1736347131409,20.0,198.54,198.42,24.39923955]
[1736347131653,20.0,198.54,198.43,24.39923955]
[1736347131831,6.4362,198.57,198.45,23.776884]
[1736347132043,6.4362,198.57,198.51,23.776884]
[1736347132414,6.4362,198.57,198.48,24.39923955]
[1736347132609,6.4362,198.57,198.5,48.17612355]
[1736347132834,6.4362,198.57,198.51,23.776884]
[1736347133134,6.4362,198.57,198.52,23.776884]
[1736347133451,6.4362,198.57,198.54,23.776884]
[1736347133607,6.6477,198.63,198.56,48.17612355]
[1736347133924,6.6477,198.7,198.61,23.776884]
[1736347134241,6.6477,198.7,198.59,23.776884]
[1736347134605,6.6477,198.7,198.57,24.39923955]
[1736347134606,6.6477,198.7,198.58,23.776884]
[1736347134809,6.6477,198.7,198.56,137.1]
[1736347134810,0.89666926,198.69,198.56,137.1]
[1736347135044,20.0,198.67,198.54,24.39923955]
[1736347135339,20.0,198.67,198.55,23.776884]
[1736347135537,0.89676573,198.66,198.49,3.2]
[1736347135735,20.0,198.62,198.49,3.2]
[1736347136725,0.89708029,198.61,198.49,3.2]
[1736347137240,20.8971038,198.62,198.49,3.2]
[1736347138322,20.0,198.62,198.5,23.776884]
[1736347138548,20.0,198.62,198.52,23.776884]
[1736347138749,20.0,198.62,198.54,23.776884]
[1736347139116,20.0,198.62,198.53,23.776884]
[1736347139316,20.0,198.62,198.51,24.39923955]
[1736347139622,20.0,198.62,198.52,23.776884]
[1736347139866,20.0,198.62,198.48,3.2]
[1736347140150,0.89701574,198.61,198.48,140.3]
[1736347140323,1.5661,198.6,198.48,137.1]
[1736347140522,20.0,198.55,198.48,137.1]
[1736347140722,20.0,198.55,198.42,161.49923955]
[1736347140927,20.0,198.55,198.42,137.1]
[1736347141322,0.89736632,198.54,198.37,24.39923955]
[1736347141519,1.5078,198.48,198.35,137.1]
[1736347141723,2.40547997,198.48,198.34,137.1]
[1736347141947,2.40547997,198.48,198.33,137.1]
[1736347142351,20.0,198.43,198.31,3.2]
[1736347142552,0.89801942,198.42,198.27,161.49923955]
[1736347142727,0.89801942,198.42,198.27,137.1]
[1736347143048,20.89801942,198.42,198.27,137.1]
[1736347143227,20.0,198.38,198.28,23.776884]
[1736347143567,20.0,198.38,198.28,160.876884]
[1736347143848,20.0,198.38,198.28,137.1]
[1736347144823,20.0,198.38,198.29,23.776884]
[1736347145257,6.5938,198.41,198.29,23.776884]
[1736347145640,6.5938,198.41,198.29,63.47906065]
[1736347145938,6.5938,198.41,198.33,23.776884]
[1736347146119,6.5938,198.41,198.32,137.1]
[1736347146120,20.0,198.38,198.32,137.1]
[1736347147648,20.0,198.38,198.27,63.47906065]
[1736347147855,20.0,198.38,198.27,23.776884]
[1736347148155,20.0,198.38,198.27,63.47906065]
[1736347148363,20.0,198.38,198.28,63.47906065]
[1736347148655,20.0,198.38,198.28,23.776884]
[1736347148828,20.0,198.38,198.28,39.70217665]
[1736347149032,20.0,198.38,198.27,63.47906065]
[1736347149223,20.0,198.38,198.29,23.776884]
[1736347149658,20.0,198.38,198.27,23.776884]
[1736347149835,20.0,198.38,198.26,3.2]
[1736347149836,1.5856,198.37,198.26,3.2]
[1736347150038,1.5856,198.37,198.25,182.46]
[1736347150353,20.0,198.33,198.25,45.36]
[1736347150940,20.0,198.33,198.19,140.28]
[1736347151131,0.89846194,198.32,198.19,137.1]
[1736347151552,0.89846194,198.32,198.2,23.776884]
[1736347151752,0.89846194,198.32,198.17,175.46229913]
[1736347151936,0.89846194,198.32,198.18,39.70217665]
[1736347152253,0.89846194,198.32,198.17,215.16447578]
[1736347152458,0.89846194,198.32,198.17,39.70217665]
[1736347152661,0.89846194,198.32,198.18,200.57906065]
[1736347152861,20.0,198.33,198.2,23.776884]
[1736347153036,20.0,198.33,198.23,23.776884]
[1736347153237,20.0,198.33,198.23,164.056884]
[1736347153434,6.1327,198.36,198.23,164.056884]
[1736347153631,6.1327,198.36,198.25,23.776884]
[1736347154159,6.1327,198.36,198.25,160.876884]
[1736347154346,6.1327,198.36,198.25,200.57906065]
[1736347154548,6.1327,198.36,198.25,160.876884]
[1736347154863,6.1327,198.36,198.25,200.57906065]
[1736347155385,6.1327,198.36,198.31,39.70217665]
[1736347155664,6.1327,198.36,198.32,26.956884]
[1736347156166,6.5293,198.43,198.32,164.056884]
[1736347156463,6.5293,198.43,198.32,203.75906065]
[1736347156675,6.5293,198.43,198.31,39.70217665]
[1736347156875,6.5293,198.43,198.29,39.70217665]
[1736347157047,7.42725971,198.43,198.3,38.906884]
[1736347157375,20.0,198.4,198.29,137.1]
[1736347157737,20.0,198.4,198.27,140.26]
[1736347157942,0.8981207,198.39,198.27,140.26]
[1736347158134,20.0,198.38,198.27,140.26]
[1736347158352,6.3681,198.36,198.24,137.1]
[1736347158633,6.3681,198.36,198.21,3.18]
[1736347158634,20.0,198.33,198.21,137.1]
[1736347158944,1.5961,198.32,198.21,137.1]
[1736347159251,1.5961,198.32,198.22,23.776884]
[1736347159764,1.5961,198.32,198.21,137.1]
[1736347159977,1.5961,198.32,198.22,23.776884]
[1736347160153,1.5961,198.32,198.21,137.1]
[1736347160566,1.5961,198.32,198.22,23.776884]
[1736347160770,6.3681,198.36,198.24,23.776884]
[1736347160962,6.3681,198.36,198.24,160.876884]
[1736347162369,6.3681,198.36,198.21,176.80217665]
[1736347162590,6.3681,198.36,198.21,137.1]
[1736347162774,6.3681,198.36,198.22,160.876884]
[1736347163163,20.0,198.33,198.22,23.776884]
[1736347163382,0.89839854,198.32,198.2,140.28]
[1736347163566,0.89839854,198.32,198.17,175.46229913]
[1736347163774,20.0,198.28,198.13,39.70217665]
[1736347164085,20.0,198.28,198.13,137.1]
[1736347164400,1.591,198.26,198.14,23.776884]
[1736347164693,1.591,198.26,198.14,63.47906065]
[1736347164861,1.591,198.26,198.14,23.776884]
[1736347165065,1.591,198.26,198.14,66.61906065]
[1736347166297,1.591,198.26,198.14,26.916884]
[1736347166492,1.591,198.26,198.14,23.776884]
[1736347166800,1.591,198.26,198.14,200.57906065]
[1736347166973,1.591,198.26,198.14,176.80217665]
[1736347167163,1.591,198.26,198.14,137.1]
[1736347167359,0.89869208,198.25,198.12,137.1]
[1736347167562,20.0,198.21,198.1,137.1]
[1736347167763,20.0,198.21,198.08,48.54]
[1736347167764,20.0,198.21,198.08,185.64]
[1736347167992,20.0,198.21,198.08,45.4]
[1736347168200,0.89901622,198.2,198.08,45.4]
[1736347168569,20.0,198.21,198.08,45.4]
[1736347169396,0.8990662,198.2,198.08,45.4]
[1736347169573,6.0285,198.19,198.08,45.4]
[1736347169774,20.0,198.16,198.08,45.4]
[1736347171398,1.6541,198.15,198.01,140.22]
[1736347172291,1.6541,198.15,198.02,23.776884]
[1736347172498,20.0,198.1,197.99,137.1]
[1736347173175,20.0,198.1,197.96,137.1]
[1736347173497,0.89945329,198.09,197.96,137.1]
[1736347173887,0.89945329,198.09,197.97,23.776884]
[1736347174181,20.0,198.1,197.97,23.776884]
[1736347174182,20.0,198.1,197.97,48.25082784]
[1736347174378,6.088,198.13,198.03,137.1]
[1736347174686,6.088,198.13,198.04,160.876884]
[1736347177377,6.088,198.13,198.04,137.1]
[1736347177904,20.0,198.1,197.99,137.1]
[1736347178100,20.0,198.1,198.0,23.776884]
[1736347178700,20.0,198.1,198.0,160.876884]
[1736347180374,20.0,198.1,197.98,140.2]
[1736347180800,20.0,198.1,197.95,137.1]
[1736347181007,20.0,198.1,197.95,140.18]
[1736347181178,20.0,198.1,197.95,164.65394384]
[1736347181696,20.0,198.1,197.96,48.25082784]
[1736347182198,20.0,198.1,197.96,23.776884]
[1736347182505,0.89950234,198.09,197.95,137.1]
[1736347182875,20.0,198.1,197.96,23.776884]
[1736347183193,20.0,198.1,197.98,23.776884]
[1736347183695,20.0,198.1,197.97,23.776884]
[1736347184796,6.2235,198.09,197.97,23.776884]
[1736347184996,1.5583,198.05,197.94,137.1]
[1736347185777,1.5583,198.05,197.95,23.776884]
[1736347185977,1.5583,198.05,197.95,160.876884]
[1736347186191,2.45801565,198.05,197.9,140.18]
[1736347186413,20.0,198.04,197.9,137.1]
[1736347186710,20.0,198.04,197.91,23.776884]
[1736347186882,6.4375,198.03,197.9,137.1]
[1736347187081,20.0,198.0,197.9,137.1]
[1736347187396,7.21911524,197.99,197.85,137.1]
[1736347187582,10.29911524,197.99,197.83,137.1]
[1736347187782,7.21911524,197.99,197.83,161.57394384]
[1736347187995,7.21911524,197.99,197.86,48.25082784]
[1736347187996,6.3192,197.99,197.86,48.25082784]
[1736347188177,6.3192,197.99,197.9,23.776884]
[1736347188378,6.3192,197.99,197.92,24.47394384]
[1736347188608,6.3192,197.99,197.92,137.1]
[1736347189075,6.3192,197.99,197.91,20.0]
[1736347189280,6.3192,197.99,197.89,137.1]
[1736347189903,6.3192,197.99,197.85,137.1]
[1736347189904,0.8999918,197.98,197.85,137.1]
[1736347190103,6.3192,197.99,197.85,137.1]
[1736347190286,6.3192,197.99,197.87,24.47394384]
[1736347190483,6.3192,197.99,197.86,23.776884]
[1736347190900,6.3192,197.99,197.85,137.1]
[1736347190901,0.90003225,197.98,197.85,137.1]
[1736347191117,20.0,197.94,197.78,182.56]
[1736347191328,20.0,197.94,197.78,207.03394384]
[1736347191483,6.6527,197.93,197.78,207.03394384]
[1736347191683,6.6527,197.93,197.82,23.776884]
[1736347192196,6.6527,197.93,197.81,137.1]
[1736347192392,6.6527,197.93,197.78,45.46]
[1736347192393,0.90032158,197.92,197.78,45.46]
[1736347193089,20.0,197.9,197.78,45.46]
[1736347193285,6.6527,197.93,197.78,45.46]
[1736347193286,8.69332323,197.89,197.78,45.46]
[1736347193487,7.7927,197.89,197.78,45.46]
[1736347194018,0.90058063,197.88,197.78,45.46]
[1736347194221,20.0,197.86,197.7,161.57394384]
[1736347194399,0.90076897,197.85,197.71,3.12]
[1736347194587,0.90076897,197.85,197.73,20.0]
[1736347194930,0.90076897,197.85,197.71,27.59394384]
[1736347195087,0.90078225,197.88,197.72,24.47394384]
[1736347195283,20.0,197.86,197.73,20.0]
[1736347195486,20.0,197.86,197.71,140.22]
[1736347195688,0.90073902,197.85,197.72,23.776884]
[1736347195882,0.90073902,197.85,197.69,20.0]
[1736347195883,6.5919,197.84,197.69,20.0]
[1736347196142,6.5919,197.84,197.69,137.1]
[1736347196294,20.0,197.81,197.69,137.1]
[1736347196504,20.0,197.81,197.67,3.12]
[1736347196505,1.5564,197.8,197.67,140.22]
[1736347196821,2.4573408,197.8,197.67,3.12]
[1736347196980,6.2231,197.79,197.67,3.12]
[1736347197188,6.2231,197.79,197.65,24.47394384]
[1736347197439,0.90096438,197.78,197.65,3.12]
[1736347197597,6.2231,197.79,197.65,3.12]
[1736347197798,7.12415424,197.79,197.66,20.0]
[1736347198142,7.12415424,197.79,197.65,3.12]
[1736347198735,20.0,197.76,197.65,48.25082784]
[1736347199107,20.0,197.76,197.64,27.59394384]
[1736347199314,20.0,197.76,197.62,37.12414384]
[1736347199526,20.0,197.76,197.64,23.776884]
[1736347199712,20.0,197.76,197.63,24.47394384]
[1736347199910,20.0,197.76,197.62,40.24414384]
[1736347200221,20.0,197.76,197.63,24.47394384]
[1736347200531,20.0,197.76,197.66,24.47394384]
[1736347200701,7.12415424,197.79,197.68,24.47394384]
[1736347200702,6.2231,197.79,197.68,24.47394384]
[1736347200904,6.2231,197.79,197.65,23.776884]
[1736347200905,6.2231,197.79,197.71,24.47394384]
[1736347201109,6.2231,197.79,197.74,24.47394384]
[1736347201408,6.2231,197.79,197.76,24.47394384]
[1736347201611,6.2182,197.85,197.78,24.47394384]
[1736347201831,6.2182,197.85,197.81,48.25082784]
[1736347202010,6.3106,197.9,197.84,23.776884]
[1736347202197,6.3106,197.9,197.85,23.776884]
[1736347202400,6.3106,197.9,197.85,48.25082784]
[1736347202636,5.0,198.07,197.85,48.25082784]
[1736347202637,6.3106,197.97,197.89,48.25082784]
[1736347203020,6.3106,197.97,197.88,48.25082784]
[1736347203331,6.3106,197.97,197.9,23.776884]
[1736347203539,6.3106,197.97,197.92,48.25082784]
[1736347203702,6.3106,197.97,197.91,24.47394384]
[1736347204048,6.3106,197.97,197.91,63.62858012]
[1736347204212,6.3106,197.97,197.94,39.85169612]
[1736347204432,6.3106,197.97,197.94,3.12]
[1736347204611,6.3106,197.97,197.94,23.12]
[1736347204941,6.3106,197.97,197.94,3.12]
[1736347205118,1.5522,198.04,197.97,23.776884]
[1736347205119,6.5047,198.03,197.97,23.776884]
[1736347205319,6.5047,198.09,198.01,23.776884]
[1736347205620,6.5047,198.09,198.02,42.97169612]
[1736347206336,6.5047,198.09,198.03,63.62858012]
[1736347206517,6.5047,198.09,198.03,200.72858012]
[1736347206835,6.5047,198.09,198.03,160.876884]
[1736347207396,6.5047,198.09,198.03,137.1]
[1736347207634,6.5047,198.09,197.99,42.95169612]
[1736347207807,6.5047,198.09,198.01,23.776884]
[1736347208003,6.5047,198.09,198.03,63.62858012]
[1736347208233,6.5047,198.09,198.03,23.776884]
[1736347208438,6.5047,198.09,198.05,39.85169612]
[1736347208730,6.5276,198.16,198.06,23.776884]
[1736347208904,6.5276,198.16,198.04,23.776884]
[1736347209109,20.0,198.13,198.03,137.1]
[1736347209303,20.0,198.13,198.01,137.1]
[1736347209497,20.0,198.13,198.0,176.95169612]
[1736347209698,6.5276,198.16,198.05,39.85169612]
[1736347209935,6.5276,198.16,198.06,23.776884]
[1736347210241,6.5276,198.16,198.05,23.776884]
[1736347210404,20.0,198.13,198.01,137.1]
[1736347210603,20.0,198.13,198.02,39.85169612]
[1736347210830,20.0,198.13,198.03,23.776884]
[1736347211021,0.94648964,198.12,197.99,137.1]
[1736347211345,0.94648964,198.12,197.91,137.1]
[1736347211346,20.0,198.04,197.91,137.1]
[1736347211551,0.94694675,198.03,197.91,137.1]
[1736347211710,20.94693813,198.04,197.91,137.1]
[1736347212034,20.0,198.03,197.87,180.09169612]
[1736347212210,0.94707742,198.02,197.87,137.1]
[1736347212423,20.0,197.98,197.84,140.22]
[1736347212625,20.0,197.98,197.86,20.0]
[1736347212928,0.94727443,197.97,197.81,222.47169612]
[1736347213132,20.0,197.92,197.81,45.52]
[1736347213330,6.2621,197.9,197.81,45.52]
[1736347214031,7.20963614,197.9,197.81,45.52]
[1736347214439,6.2621,197.9,197.81,45.52]
[1736347214957,6.2621,197.9,197.81,182.62]
[1736347215862,6.2621,197.9,197.81,45.52]
[1736347217130,6.4058,197.96,197.85,23.776884]
[1736347217315,6.4058,197.96,197.86,3.12]
[1736347217951,6.4058,197.96,197.87,63.62858012]
[1736347218126,6.4058,197.96,197.89,23.776884]
[1736347218318,1.518,198.0,197.93,23.776884]
[1736347218616,6.6449,198.02,197.94,3.14]
[1736347218818,6.6449,198.02,197.95,63.62858012]
[1736347219019,1.6176,198.07,198.0,20.0]
[1736347219254,6.6449,198.09,198.01,63.62858012]
[1736347219452,6.6449,198.09,198.02,3.14]
[1736347219963,6.6449,198.09,198.03,23.776884]
[1736347220672,6.6449,198.09,198.02,140.24]
[1736347221373,6.6449,198.09,198.03,23.776884]
[1736347221875,6.6449,198.09,198.03,17.110284]
[1736347222035,20.0,198.06,197.93,39.85169612]
[1736347222241,20.0,198.06,197.94,39.85169612]
[1736347222449,20.0,198.06,197.96,39.85169612]
[1736347222672,20.0,198.06,197.94,176.95169612]
[1736347222851,20.0,198.06,197.95,39.85169612]
[1736347223053,6.6449,198.09,197.97,39.85169612]
[1736347223248,6.6449,198.09,197.96,39.85169612]
[1736347223693,6.6449,198.09,197.98,196.95169612]
[1736347223845,6.6449,198.09,198.0,39.85169612]
[1736347224046,6.6449,198.09,197.99,23.776884]
[1736347224558,6.6449,198.09,197.98,140.2]
[1736347224967,20.0,198.06,197.98,137.1]
[1736347225146,20.0,198.06,197.92,137.1]
[1736347225342,0.94683939,198.05,197.92,137.1]
[1736347225651,43.776884,198.04,197.88,137.1]
[1736347225966,20.0,197.98,197.84,20.0]
[1736347226345,20.0,197.98,197.82,23.776884]
[1736347226763,20.0,197.98,197.81,178.58229913]
[1736347226960,0.94718037,197.97,197.81,178.58229913]
[1736347227149,20.0,197.93,197.81,137.1]
[1736347227490,20.94741545,197.92,197.75,137.1]
[1736347227780,20.94741545,197.92,197.76,23.776884]
[1736347227984,6.6098,197.96,197.79,23.776884]
[1736347228188,20.0,197.93,197.77,137.1]
[1736347228361,20.0,197.93,197.81,23.776884]
[1736347228561,20.0,197.93,197.81,26.896884]
[1736347229264,0.94736868,197.92,197.81,3.12]
[1736347230286,20.0,197.93,197.81,3.12]
[1736347231589,6.6098,197.96,197.82,23.776884]
[1736347232871,6.6098,197.96,197.86,160.876884]
[1736347233374,6.6098,197.96,197.82,38.36229913]
[1736347233375,7.7481,198.02,197.9,23.776884]
[1736347233577,7.7481,198.02,197.92,23.776884]
[1736347233779,7.7481,198.02,197.9,137.1]
[1736347233962,7.7481,198.02,197.91,23.776884]
[1736347234472,6.165,198.02,197.94,20.0]
[1736347234663,6.6206,198.09,197.95,23.776884]
[1736347234868,20.0,198.06,197.95,160.876884]
[1736347235575,0.94671087,198.08,197.95,137.1]
[1736347235773,6.6206,198.09,197.95,137.1]
[1736347235974,20.0,198.06,197.96,23.776884]
[1736347236188,6.6206,198.09,197.96,23.776884]
[1736347237489,6.6206,198.09,197.96,200.72858012]
[1736347237699,6.6206,198.09,197.97,39.85169612]